Department Family,Entity,Date of Payment,GL Description,Expense Area,Supplier,Voluntary & Community Sector,SME Class,Sole Trader,Transaction number,Purchasing Item Text,Postal Code,Amount in Sterling,Grant?
"Housing, Communities & Local Government",PINS,21/04/2020,Agency Staff,Strategy & Corp Governance,REED SPECIALIST RECRUITMENT LTD,,Large,,5106259662,AO PA Resource,SW20 0BA,268.74,
"Housing, Communities & Local Government",PINS,20/04/2020,NSI Fees & Expenses,NSI Expenses Planning,ANDREW DALE,,Data Not Provided,,5106259617,NSI Expenses,DE23 8DP,280.25,
"Housing, Communities & Local Government",PINS,07/04/2020,Agency Staff,Inspector Development & Support Team,REED SPECIALIST RECRUITMENT LTD,,Large,,5106259243,AO IDST,SW20 0BA,287.81,
"Housing, Communities & Local Government",PINS,28/04/2020,Travel and Subsistence Account,Inspector Costs + NSI,CORPORATE TRAVEL MANAGEMENT(NORTH)L,,Small,,5106259897,Web Transaction,BD1 5HQ,299.45,
"Housing, Communities & Local Government",PINS,24/04/2020,Agency Staff,"Finance, Commercial & Business Support",REED SPECIALIST RECRUITMENT LTD,,Large,,5106259664,AA Storekeeper,SW20 0BA,334.00,
"Housing, Communities & Local Government",PINS,28/04/2020,Travel and Subsistence Account,Inspector Costs + NSI,CORPORATE TRAVEL MANAGEMENT(NORTH)L,,Small,,5106259897,Hotel Fee,BD1 5HQ,334.57,
"Housing, Communities & Local Government",PINS,21/04/2020,EXP � PURCHASE OF GOODS /SERVICES R & D,Research and Development,REED SPECIALIST RECRUITMENT LTD,,Large,,5106259679,ODT Project Support ,SW20 0BA,404.74,
"Housing, Communities & Local Government",PINS,07/04/2020,EXP � PURCHASE OF GOODS /SERVICES R & D,Research and Development,HAYS SPECIALIST RECRUITMENT LTD,,Large,,5106259217,ODT Content Designer,NW1 2AF,414.18,
"Housing, Communities & Local Government",PINS,07/04/2020,Advertising,Resourcing & Process,TMP (UK) LIMITED,,Large,,5106259187,Statutory Advertising - NI,W1T 7RQ,426.20,
"Housing, Communities & Local Government",PINS,28/04/2020,Agency Staff,"Finance, Commercial & Business Support",REED SPECIALIST RECRUITMENT LTD,,Large,,5106259873,AA Storekeeper,SW20 0BA,445.32,
"Housing, Communities & Local Government",PINS,20/04/2020,Mobile phone costs,Digital Services,DAISY COMMUNICATIONS LIMITED,,Large,,5106259657,Ac ATV1903 mobile wifi devices,BB9 5SR,467.62,
"Housing, Communities & Local Government",PINS,21/04/2020,Agency Staff,Director of Volume Casework,REED SPECIALIST RECRUITMENT LTD,,Large,,5106259661,Validation Officer,SW20 0BA,491.52,
"Housing, Communities & Local Government",PINS,23/04/2020,Agency Staff,Director of Volume Casework,REED SPECIALIST RECRUITMENT LTD,,Large,,5106259665,Validation Officer,SW20 0BA,491.52,
"Housing, Communities & Local Government",PINS,28/04/2020,Agency Staff,Director of Volume Casework,REED SPECIALIST RECRUITMENT LTD,,Large,,5106259884,Validation Officer,SW20 0BA,491.52,
"Housing, Communities & Local Government",PINS,28/04/2020,Agency Staff,Director of Volume Casework,REED SPECIALIST RECRUITMENT LTD,,Large,,5106259911,Validation Officer,SW20 0BA,491.52,
"Housing, Communities & Local Government",PINS,21/04/2020,Agency Staff,Inspector Development & Support Team,REED SPECIALIST RECRUITMENT LTD,,Large,,5106259675,Temp staff IDST,SW20 0BA,497.45,
"Housing, Communities & Local Government",PINS,08/04/2020,NSI Fees & Expenses,NSI Fees Planning,MARTIN ANDREWS PLANNING CONSULTANCY,,Micro,,5106259315,NSI Fees,BH15 1HH,510.00,
"Housing, Communities & Local Government",PINS,15/04/2020,Agency Staff,Inspector Development & Support Team,REED SPECIALIST RECRUITMENT LTD,,Large,,5106259472,Temp staff IDST ,SW20 0BA,521.14,
"Housing, Communities & Local Government",PINS,27/04/2020,Agency Staff,Inspector Development & Support Team,REED SPECIALIST RECRUITMENT LTD,,Large,,5106259876,Temp staff IDST,SW20 0BA,521.14,
"Housing, Communities & Local Government",PINS,28/04/2020,Agency Staff,Inspector Development & Support Team,REED SPECIALIST RECRUITMENT LTD,,Large,,5106259925,Temp staff IDST,SW20 0BA,521.14,
"Housing, Communities & Local Government",PINS,07/04/2020,Agency Staff,Strategy & Corp Governance,REED SPECIALIST RECRUITMENT LTD,,Large,,5106259221,AO PA Resource,SW20 0BA,537.48,
"Housing, Communities & Local Government",PINS,15/04/2020,EXP � PURCHASE OF GOODS /SERVICES R & D,Research and Development,REED SPECIALIST RECRUITMENT LTD,,Large,,5106259470,ODT Project Support,SW20 0BA,539.64,
"Housing, Communities & Local Government",PINS,21/04/2020,Agency Staff,Human Resources,REED SPECIALIST RECRUITMENT LTD,,Large,,5106259663,AO HR,SW20 0BA,539.64,
"Housing, Communities & Local Government",PINS,28/04/2020,Agency Staff,Human Resources,REED SPECIALIST RECRUITMENT LTD,,Large,,5106259877,AO HR ,SW20 0BA,539.64,
"Housing, Communities & Local Government",PINS,28/04/2020,EXP � PURCHASE OF GOODS /SERVICES R & D,Research and Development,REED SPECIALIST RECRUITMENT LTD,,Large,,5106259889,ODT Project Support,SW20 0BA,539.64,
"Housing, Communities & Local Government",PINS,08/04/2020,EXP � PURCHASE OF GOODS /SERVICES R & D,Research and Development,REED SPECIALIST RECRUITMENT LTD,,Large,,5106259189,ODT Project Support,SW20 0BA,548.64,
"Housing, Communities & Local Government",PINS,14/04/2020,Agency Staff,"Finance, Commercial & Business Support",REED SPECIALIST RECRUITMENT LTD,,Large,,5106259430,AA Storekeeper Ext,SW20 0BA,549.23,
"Housing, Communities & Local Government",PINS,15/04/2020,Agency Staff,"Finance, Commercial & Business Support",REED SPECIALIST RECRUITMENT LTD,,Large,,5106259481,AA Storekeeper,SW20 0BA,549.23,
"Housing, Communities & Local Government",PINS,28/04/2020,Agency Staff,Knowledge & Horizon Scanning,REED SPECIALIST RECRUITMENT LTD,,Large,,5106259671,Agency Staff for Library 19-20,SW20 0BA,555.70,
"Housing, Communities & Local Government",PINS,28/04/2020,Agency Staff,Knowledge & Horizon Scanning,REED SPECIALIST RECRUITMENT LTD,,Large,,5106259888,Agency Staff for Library 19-20,SW20 0BA,555.70,
"Housing, Communities & Local Government",PINS,28/04/2020,Agency Staff,Professional Leads,REED SPECIALIST RECRUITMENT LTD,,Large,,5106259878,PA Resource ,SW20 0BA,595.78,
"Housing, Communities & Local Government",PINS,14/04/2020,Agency Staff,Knowledge & Horizon Scanning,REED SPECIALIST RECRUITMENT LTD,,Large,,5106259192,Agency Staff for Library,SW20 0BA,604.73,
"Housing, Communities & Local Government",PINS,15/04/2020,Agency Staff,Knowledge & Horizon Scanning,REED SPECIALIST RECRUITMENT LTD,,Large,,5106259480,Agency Staff for Library,SW20 0BA,604.73,
"Housing, Communities & Local Government",PINS,07/04/2020,Agency Staff,Inspector Development & Support Team,REED SPECIALIST RECRUITMENT LTD,,Large,,5106259197,Temp staff IDST,SW20 0BA,607.99,
"Housing, Communities & Local Government",PINS,28/04/2020,Advertising,Resourcing & Process,TMP (UK) LIMITED,,Large,,5106259909,Statutory Advertising - NI,W1T 7RQ,613.87,
"Housing, Communities & Local Government",PINS,02/04/2020,Agency Staff,Director of Volume Casework,REED SPECIALIST RECRUITMENT LTD,,Large,,5106258798,Validation Officer,SW20 0BA,614.40,
"Housing, Communities & Local Government",PINS,03/04/2020,Agency Staff,Director of Volume Casework,REED SPECIALIST RECRUITMENT LTD,,Large,,5106258876,Validation Officer,SW20 0BA,614.40,
"Housing, Communities & Local Government",PINS,09/04/2020,Agency Staff,Director of Volume Casework,REED SPECIALIST RECRUITMENT LTD,,Large,,5106259193,Validation Officer,SW20 0BA,614.40,
"Housing, Communities & Local Government",PINS,09/04/2020,Agency Staff,Director of Volume Casework,REED SPECIALIST RECRUITMENT LTD,,Large,,5106259358,Validation Officer,SW20 0BA,614.40,
"Housing, Communities & Local Government",PINS,15/04/2020,Agency Staff,Director of Volume Casework,REED SPECIALIST RECRUITMENT LTD,,Large,,5106259475,Validation Officer,SW20 0BA,614.40,
"Housing, Communities & Local Government",PINS,15/04/2020,Agency Staff,Director of Volume Casework,REED SPECIALIST RECRUITMENT LTD,,Large,,5106259477,Validation Officer,SW20 0BA,614.40,
"Housing, Communities & Local Government",PINS,03/04/2020,EXP � PURCHASE OF GOODS /SERVICES R & D,Research and Development,REED SPECIALIST RECRUITMENT LTD,,Large,,5106258880,ODT Project Support,SW20 0BA,665.56,
"Housing, Communities & Local Government",PINS,14/04/2020,EXP � PURCHASE OF GOODS /SERVICES R & D,Research and Development,REED SPECIALIST RECRUITMENT LTD,,Large,,5106259303,ODT Project Support,SW20 0BA,665.56,
"Housing, Communities & Local Government",PINS,21/04/2020,Agency Staff,Professional Leads,REED SPECIALIST RECRUITMENT LTD,,Large,,5106259674,PA Resource,SW20 0BA,668.16,
"Housing, Communities & Local Government",PINS,07/04/2020,Agency Staff,Human Resources,REED SPECIALIST RECRUITMENT LTD,,Large,,5106259204,AO HR,SW20 0BA,674.56,
"Housing, Communities & Local Government",PINS,15/04/2020,Agency Staff,Human Resources,REED SPECIALIST RECRUITMENT LTD,,Large,,5106259479,AO HR,SW20 0BA,674.56,
"Housing, Communities & Local Government",PINS,28/04/2020,Advertising,Resourcing & Process,TMP (UK) LIMITED,,Large,,5106259899,Statutory Advertising - NI,W1T 7RQ,675.60,
"Housing, Communities & Local Government",PINS,07/04/2020,Agency Staff,Inspector Development & Support Team,REED SPECIALIST RECRUITMENT LTD,,Large,,5106259206,AO IDST,SW20 0BA,683.54,
"Housing, Communities & Local Government",PINS,17/04/2020,Specialist Technical Support,TR Transformation,HAYS SPECIALIST RECRUITMENT LTD,,Large,,5106259567,1.5 day extension,NW1 2AF,717.29,
"Housing, Communities & Local Government",PINS,09/04/2020,EXP � PURCHASE OF GOODS /SERVICES R & D,Research and Development,HAYS SPECIALIST RECRUITMENT LTD,,Large,,5106259332,ODT PMO Lead,NW1 2AF,752.24,
"Housing, Communities & Local Government",PINS,09/04/2020,Agency Staff,Professional Leads,REED SPECIALIST RECRUITMENT LTD,,Large,,5106259213,PA Resource,SW20 0BA,757.25,
"Housing, Communities & Local Government",PINS,07/04/2020,Advertising,Wales Support,TMP (UK) LIMITED,,Large,,5106259188,Statutory Advertising - Wales,W1T 7RQ,772.37,
"Housing, Communities & Local Government",PINS,20/04/2020,Agency Staff,Human Resources,REED SPECIALIST RECRUITMENT LTD,,Large,,5106259666,HEO HR Resourcing,SW20 0BA,834.02,
"Housing, Communities & Local Government",PINS,15/04/2020,Agency Staff,Professional Leads,REED SPECIALIST RECRUITMENT LTD,,Large,,5106259474,PA Resource,SW20 0BA,835.20,
"Housing, Communities & Local Government",PINS,09/04/2020,EXP � PURCHASE OF GOODS /SERVICES R & D,Research and Development,HAYS SPECIALIST RECRUITMENT LTD,,Large,,5106259337,Test Analyst,NW1 2AF,904.30,
"Housing, Communities & Local Government",PINS,28/04/2020,Agency Staff,Research and Development,REED SPECIALIST RECRUITMENT LTD,,Large,,5106259887,EO ODT Project Support,SW20 0BA,906.07,
"Housing, Communities & Local Government",PINS,22/04/2020,IT - Service Contracts,Digital Services,X M A LTD,,Data Not Provided,,5106259714,Migration work in 9-to-5 hours + out of,NG11 7EP,936.00,
"Housing, Communities & Local Government",PINS,21/04/2020,Agency Staff,Research and Development,REED SPECIALIST RECRUITMENT LTD,,Large,,5106259669,EO ODT Project Support Ext,SW20 0BA,938.20,
"Housing, Communities & Local Government",PINS,28/04/2020,Advertising,Resourcing & Process,TMP (UK) LIMITED,,Large,,5106259901,Statutory Advertising - NI,W1T 7RQ,945.12,
"Housing, Communities & Local Government",PINS,07/04/2020,Agency Staff,Human Resources,REED SPECIALIST RECRUITMENT LTD,,Large,,5106259190,HEO HR Resourcing,SW20 0BA,968.54,
"Housing, Communities & Local Government",PINS,14/04/2020,Specialist Technical Support,"Finance, Commercial & Business Support",HAYS SPECIALIST RECRUITMENT LTD,,Large,,5106259347,Commercial Manager,NW1 2AF,977.33,
"Housing, Communities & Local Government",PINS,17/04/2020,Specialist Technical Support,"Finance, Commercial & Business Support",HAYS SPECIALIST RECRUITMENT LTD,,Large,,5106259563,Commercial Manager ,NW1 2AF,977.33,
"Housing, Communities & Local Government",PINS,24/04/2020,Specialist Technical Support,"Finance, Commercial & Business Support",HAYS SPECIALIST RECRUITMENT LTD,,Large,,5106259794,Commercial Manager,NW1 2AF,977.33,
"Housing, Communities & Local Government",PINS,28/04/2020,Advertising,Resourcing & Process,TMP (UK) LIMITED,,Large,,5106259898,Statutory Advertising - NI,W1T 7RQ,"1,031.04",
"Housing, Communities & Local Government",PINS,21/04/2020,EXP � PURCHASE OF GOODS /SERVICES R & D,Research and Development,HAYS SPECIALIST RECRUITMENT LTD,,Large,,5106259667,ODT Content Designer,NW1 2AF,"1,035.45",
"Housing, Communities & Local Government",PINS,07/04/2020,Training,Resourcing & Process,ELLIOTT TRAINING LTD,,Micro,,5106259236,Advanced Excel Course,GL2 8FE,"1,080.00",
"Housing, Communities & Local Government",PINS,17/04/2020,Specialist Technical Support,Heathrow,SOLOS CONSULTANTS LTD,,Large,,5106259557,Excel Expert forcasting - EXT 30/06/2020,NG16 1LA,"1,089.02",
"Housing, Communities & Local Government",PINS,21/04/2020,Specialist Technical Support,Heathrow,SOLOS CONSULTANTS LTD,,Large,,5106259685,Excel Expert forcasting - EXT 30/06/2020,NG16 1LA,"1,089.02",
"Housing, Communities & Local Government",PINS,28/04/2020,Specialist Technical Support,Heathrow,SOLOS CONSULTANTS LTD,,Large,,5106259800,Excel Expert forcasting - EXT 30/06/2020,NG16 1LA,"1,089.02",
"Housing, Communities & Local Government",PINS,15/04/2020,Agency Staff,Human Resources,REED SPECIALIST RECRUITMENT LTD,,Large,,5106259473,HEO HR Resourcing,SW20 0BA,"1,089.61",
"Housing, Communities & Local Government",PINS,15/04/2020,IT Maintenance,Digital Services,X M A LIMITED,,Data Not Provided,,5106259491,Surface hub 1 year warranty,NG11 7EP,"1,091.63",
"Housing, Communities & Local Government",PINS,07/04/2020,Agency Staff,Research and Development,REED SPECIALIST RECRUITMENT LTD,,Large,,5106259214,EO ODT Project Support Ext,SW20 0BA,"1,130.98",
"Housing, Communities & Local Government",PINS,15/04/2020,Agency Staff,Research and Development,REED SPECIALIST RECRUITMENT LTD,,Large,,5106259469,EO ODT Project Support Ext,SW20 0BA,"1,130.98",
"Housing, Communities & Local Government",PINS,09/04/2020,EXP � PURCHASE OF GOODS /SERVICES R & D,Research and Development,HAYS SPECIALIST RECRUITMENT LTD,,Large,,5106259330,ODT BA ,NW1 2AF,"1,140.62",
"Housing, Communities & Local Government",PINS,28/04/2020,Agency Staff,Transformation Prog Management Office,REED SPECIALIST RECRUITMENT LTD,,Large,,5106259673,Finance Business Partner,SW20 0BA,"1,171.08",
"Housing, Communities & Local Government",PINS,14/04/2020,Physical Storage,Business Support,RESTORE PLC,,Large,,5106259412,offsite storage 19/20,RH1 5DY,"1,173.95",
"Housing, Communities & Local Government",PINS,28/04/2020,Agency Staff,Human Resources,HAYS SPECIALIST RECRUITMENT LTD,,Large,,5106259913,Admin OD/HR Support ,NW1 2AF,"1,175.46",
"Housing, Communities & Local Government",PINS,03/04/2020,Agency Staff,Human Resources,HAYS SPECIALIST RECRUITMENT LTD,,Large,,5106258886,Admin OD/HR Support,NW1 2AF,"1,196.34",
"Housing, Communities & Local Government",PINS,29/04/2020,Specialist Technical Support,"Finance, Commercial & Business Support",VENN GROUP,,Large,,5106259872,Finance resource for y/e CIR1 process +,SE1 2QP,"1,221.31",
"Housing, Communities & Local Government",PINS,29/04/2020,Specialist Technical Support,"Finance, Commercial & Business Support",VENN GROUP,,Large,,5106259875,Finance resource for y/e CIR1 process +,SE1 2QP,"1,221.31",
"Housing, Communities & Local Government",PINS,29/04/2020,Specialist Technical Support,"Finance, Commercial & Business Support",VENN GROUP,,Large,,5106259915,Finance resource for y/e CIR1 process +,SE1 2QP,"1,221.31",
"Housing, Communities & Local Government",PINS,02/04/2020,Courier Services,Estates,ROYAL MAIL,,Large,,5106258090,Postal services VAT 19/20,S49 1HQ,"1,233.00",
"Housing, Communities & Local Government",PINS,24/04/2020,EXP � PURCHASE OF GOODS /SERVICES R & D,Research and Development,HAYS SPECIALIST RECRUITMENT LTD,,Large,,5106259789,ODT Content Designer,NW1 2AF,"1,242.54",
"Housing, Communities & Local Government",PINS,09/04/2020,Specialist Technical Support,Resourcing & Process,SOLOS CONSULTANTS LTD,,Large,,5106258909,Excel Expert-Forcasting Model Developer,NG16 1LA,"1,361.28",
"Housing, Communities & Local Government",PINS,09/04/2020,Specialist Technical Support,Resourcing & Process,SOLOS CONSULTANTS LTD,,Large,,5106259350,Excel Expert-Forcasting Model Developer,NG16 1LA,"1,361.28",
"Housing, Communities & Local Government",PINS,14/04/2020,Specialist Technical Support,TR Customer,HAYS SPECIALIST RECRUITMENT LTD,,Large,,5106259384,BA Resource for CRM,NW1 2AF,"1,368.74",
"Housing, Communities & Local Government",PINS,15/04/2020,Training,"Finance, Commercial & Business Support",Tom Dalgarno,,Micro,,5106259503,Video production services,BS5 7DG,"1,375.00",
"Housing, Communities & Local Government",PINS,09/04/2020,Specialist Technical Support,Research and Development,HAYS SPECIALIST RECRUITMENT LTD,,Large,,5106259340,Test Analyst ODT,NW1 2AF,"1,398.82",
"Housing, Communities & Local Government",PINS,17/04/2020,Specialist Technical Support,Research and Development,HAYS SPECIALIST RECRUITMENT LTD,,Large,,5106259571,Test Analyst ODT,NW1 2AF,"1,398.82",
"Housing, Communities & Local Government",PINS,24/04/2020,Specialist Technical Support,Research and Development,HAYS SPECIALIST RECRUITMENT LTD,,Large,,5106259791,Test Analyst ODT,NW1 2AF,"1,398.82",
"Housing, Communities & Local Government",PINS,02/04/2020,Agency Staff,Transformation Prog Management Office,REED SPECIALIST RECRUITMENT LTD,,Large,,5106258694,Finance Business Partner,SW20 0BA,"1,424.82",
"Housing, Communities & Local Government",PINS,09/04/2020,Agency Staff,Transformation Prog Management Office,REED SPECIALIST RECRUITMENT LTD,,Large,,5106259205,Finance Business Partner,SW20 0BA,"1,444.33",
"Housing, Communities & Local Government",PINS,20/04/2020,NSI Fees & Expenses,NSI Fees Planning,ANDREW DALE,,Data Not Provided,,5106259617,NSI Fees,DE23 8DP,"1,455.00",
"Housing, Communities & Local Government",PINS,09/04/2020,Specialist Technical Support,"Finance, Commercial & Business Support",VENN GROUP,,Large,,5106259377,Finance resource for y/e CIR1 process +,SE1 2QP,"1,526.64",
"Housing, Communities & Local Government",PINS,29/04/2020,Specialist Technical Support,"Finance, Commercial & Business Support",VENN GROUP,,Large,,5106259874,Finance resource for y/e CIR1 process +,SE1 2QP,"1,526.64",
"Housing, Communities & Local Government",PINS,28/04/2020,Advertising,Resourcing & Process,TMP (UK) LIMITED,,Large,,5106259903,Statutory Advertising - NI,W1T 7RQ,"1,531.80",
"Housing, Communities & Local Government",PINS,16/04/2020,Agency Staff,Transformation Prog Management Office,REED SPECIALIST RECRUITMENT LTD,,Large,,5106259471,Finance Business Partner,SW20 0BA,"1,561.44",
"Housing, Communities & Local Government",PINS,14/04/2020,Translations,Wales Support,TROSOL CYFYNGEDIG,,Small,,5106259429,Pins Wales translation costs extension,CF14 5GH,"1,589.82",
"Housing, Communities & Local Government",PINS,24/04/2020,NSI Fees & Expenses,NSI Fees Planning,SANDRA PRAIL LTD,,Micro,,5106259767,NSI Fees,BN16 1RX,"1,620.00",
"Housing, Communities & Local Government",PINS,09/04/2020,"IT - PC, Network & Hardware",Estates,CONDECO LTD,,Large,,5106259341,Condeco Room Screens renewal 20-21,E14 9GE,"1,633.94",
"Housing, Communities & Local Government",PINS,20/04/2020,Agency Staff,Communications,HAYS SPECIALIST RECRUITMENT LTD,,Large,,5106259518,Change Portfolio Comms Lead ,NW1 2AF,"1,670.40",
"Housing, Communities & Local Government",PINS,27/04/2020,Agency Staff,Communications,HAYS SPECIALIST RECRUITMENT LTD,,Large,,5106259720,Change Portfolio Comms Lead ,NW1 2AF,"1,670.40",
"Housing, Communities & Local Government",PINS,17/04/2020,EXP � PURCHASE OF GOODS /SERVICES R & D,Research and Development,HAYS SPECIALIST RECRUITMENT LTD,,Large,,5106259570,Test Analyst ODT,NW1 2AF,"1,676.56",
"Housing, Communities & Local Government",PINS,03/04/2020,NSI Fees & Expenses,NSI Fees Planning,JS CONSERVATION MANAGEMENT &,,Small,,5106258874,NSI Fees,LS27 0BD,"1,680.00",
"Housing, Communities & Local Government",PINS,28/04/2020,Specialist Technical Support,Performance Recovery,HAYS SPECIALIST RECRUITMENT LTD,,Large,,5106259668,BI Developer Ext,NW1 2AF,"1,698.19",
"Housing, Communities & Local Government",PINS,28/04/2020,Specialist Technical Support,Performance Recovery,HAYS SPECIALIST RECRUITMENT LTD,,Large,,5106259795,BI Developer Ext,NW1 2AF,"1,698.19",
"Housing, Communities & Local Government",PINS,20/04/2020,EXP � PURCHASE OF GOODS /SERVICES R & D,Research and Development,HAYS SPECIALIST RECRUITMENT LTD,,Large,,5106259609,ODT User Researcher,NW1 2AF,"1,710.93",
"Housing, Communities & Local Government",PINS,03/04/2020,Specialist Technical Support,Research and Development,HAYS SPECIALIST RECRUITMENT LTD,,Large,,5106258892,Test Analyst ODT ,NW1 2AF,"1,748.52",
"Housing, Communities & Local Government",PINS,16/04/2020,NSI Fees & Expenses,NSI Fees Planning,JOHN WHALLEY,,Micro,,5106259525,NSI Fees,LL54 5BS,"1,800.00",
"Housing, Communities & Local Government",PINS,23/04/2020,NSI Fees & Expenses,NSI Fees Planning,ANDREW DALE,,Data Not Provided,,5106259780,NSI Fees,DE23 8DP,"1,800.00",
"Housing, Communities & Local Government",PINS,17/04/2020,EXP � PURCHASE OF GOODS /SERVICES R & D,Research and Development,HAYS SPECIALIST RECRUITMENT LTD,,Large,,5106259561,ODT Test Analyst,NW1 2AF,"1,808.60",
"Housing, Communities & Local Government",PINS,24/04/2020,EXP � PURCHASE OF GOODS /SERVICES R & D,Research and Development,HAYS SPECIALIST RECRUITMENT LTD,,Large,,5106259811,ODT Test Analyst,NW1 2AF,"1,808.60",
"Housing, Communities & Local Government",PINS,03/04/2020,Specialist Technical Support,TR Organisational Agility,HAYS SPECIALIST RECRUITMENT LTD,,Large,,5106258854,OD Implementation Project Lead,NW1 2AF,"1,843.34",
"Housing, Communities & Local Government",PINS,07/04/2020,Specialist Technical Support,TR Organisational Agility,HAYS SPECIALIST RECRUITMENT LTD,,Large,,5106259103,OD Implementation Project Lead,NW1 2AF,"1,843.34",
"Housing, Communities & Local Government",PINS,24/04/2020,Agency Staff,Human Resources,REED SPECIALIST RECRUITMENT LTD,,Large,,5106259757,EO HR Resourcing ,SW20 0BA,"1,875.00",
"Housing, Communities & Local Government",PINS,03/04/2020,EXP � PURCHASE OF GOODS /SERVICES R & D,Research and Development,HAYS SPECIALIST RECRUITMENT LTD,,Large,,5106258895,ODT PMO Lead,NW1 2AF,"1,880.60",
"Housing, Communities & Local Government",PINS,03/04/2020,Mobile phone costs,Digital Services,VODAFONE UK,,Large,,5106258517,Lone worker protection monthly service c,NG24 2EG,"1,958.10",
"Housing, Communities & Local Government",PINS,09/04/2020,Courier Services,Estates,ROYAL MAIL,,Large,,5106259376,Postal services VAT 19/20,S49 1HQ,"1,974.24",
"Housing, Communities & Local Government",PINS,24/04/2020,Specialist Technical Support,Research and Development,HAYS SPECIALIST RECRUITMENT LTD,,Large,,5106259790,Test Analyst ODT,NW1 2AF,"2,011.87",
"Housing, Communities & Local Government",PINS,03/04/2020,EXP � PURCHASE OF GOODS /SERVICES R & D,Research and Development,SOLOS CONSULTANTS LTD,,Large,,5106259032,ODT BA ,NG16 1LA,"2,019.72",
"Housing, Communities & Local Government",PINS,17/04/2020,Specialist Technical Support,TR Transformation,HAYS SPECIALIST RECRUITMENT LTD,,Large,,5106259567,9 Day extension,NW1 2AF,"2,020.20",
"Housing, Communities & Local Government",PINS,17/04/2020,Specialist Technical Support,Research and Development,HAYS SPECIALIST RECRUITMENT LTD,,Large,,5106259565,ODT ID,NW1 2AF,"2,053.12",
"Housing, Communities & Local Government",PINS,24/04/2020,Specialist Technical Support,Research and Development,HAYS SPECIALIST RECRUITMENT LTD,,Large,,5106259788,ODT ID  ,NW1 2AF,"2,053.12",
"Housing, Communities & Local Government",PINS,17/04/2020,EXP � PURCHASE OF GOODS /SERVICES R & D,Research and Development,HAYS SPECIALIST RECRUITMENT LTD,,Large,,5106259568,ODT BA ,NW1 2AF,"2,086.80",
"Housing, Communities & Local Government",PINS,27/04/2020,EXP � PURCHASE OF GOODS /SERVICES R & D,Research and Development,HAYS SPECIALIST RECRUITMENT LTD,,Large,,5106259845,ODT BA ,NW1 2AF,"2,086.80",
"Housing, Communities & Local Government",PINS,09/04/2020,Agency Staff,Transformation Prog Management Office,HAYS SPECIALIST RECRUITMENT LTD,,Large,,5106259215,Change Portfolio Comms Lead,NW1 2AF,"2,088.00",
"Housing, Communities & Local Government",PINS,09/04/2020,Agency Staff,Transformation Prog Management Office,HAYS SPECIALIST RECRUITMENT LTD,,Large,,5106259305,Change Portfolio Comms Lead,NW1 2AF,"2,088.00",
"Housing, Communities & Local Government",PINS,15/04/2020,Agency Staff,Communications,HAYS SPECIALIST RECRUITMENT LTD,,Large,,5106259467,Change Portfolio Comms Lead,NW1 2AF,"2,088.00",
"Housing, Communities & Local Government",PINS,30/04/2020,Agency Staff,Communications,HAYS SPECIALIST RECRUITMENT LTD,,Large,,5106259926,Change Portfolio Comms Lead ,NW1 2AF,"2,088.00",
"Housing, Communities & Local Government",PINS,03/04/2020,EXP � PURCHASE OF GOODS /SERVICES R & D,Research and Development,HAYS SPECIALIST RECRUITMENT LTD,,Large,,5106258907,Test Analyst ODT,NW1 2AF,"2,095.70",
"Housing, Communities & Local Government",PINS,09/04/2020,EXP � PURCHASE OF GOODS /SERVICES R & D,Research and Development,HAYS SPECIALIST RECRUITMENT LTD,,Large,,5106259344,Test Analyst ODT,NW1 2AF,"2,095.70",
"Housing, Communities & Local Government",PINS,30/04/2020,Courier Services,Estates,PARCELFORCE WORLDWIDE,,Large,,5106259951,Courier service up to 30 Sept 2020,MK7 8LE,"2,116.92",
"Housing, Communities & Local Government",PINS,24/04/2020,Specialist Technical Support,Research and Development,SOLOS CONSULTANTS LTD,,Large,,5106259799,ODT BA ,NG16 1LA,"2,120.71",
"Housing, Communities & Local Government",PINS,20/04/2020,NSI Fees & Expenses,NSI Fees Planning,MR D HAINSWORTH,,Data Not Provided,,5106259618,NSI Fees,S60 3EE,"2,160.00",
"Housing, Communities & Local Government",PINS,02/04/2020,NSI Fees & Expenses,NSI Fees Planning,STAR PLANNING & DEVELOPMENT LTD,,Micro,,5106258866,NSI Fees,B14 6BX,"2,190.00",
"Housing, Communities & Local Government",PINS,08/04/2020,NSI Fees & Expenses,NSI Fees Planning,ANDREW DALE,,Data Not Provided,,5106259316,NSI Fees,DE23 8DP,"2,190.00",
"Housing, Communities & Local Government",PINS,03/04/2020,EXP � PURCHASE OF GOODS /SERVICES R & D,Research and Development,HAYS SPECIALIST RECRUITMENT LTD,,Large,,5106258903,ODT Test Analyst,NW1 2AF,"2,260.75",
"Housing, Communities & Local Government",PINS,09/04/2020,EXP � PURCHASE OF GOODS /SERVICES R & D,Research and Development,HAYS SPECIALIST RECRUITMENT LTD,,Large,,5106259339,ODT Test Analyst,NW1 2AF,"2,260.75",
"Housing, Communities & Local Government",PINS,17/04/2020,Specialist Technical Support,Corporate Services Director,HAYS SPECIALIST RECRUITMENT LTD,,Large,,5106259560,GDPR Trainer,NW1 2AF,"2,265.60",
"Housing, Communities & Local Government",PINS,24/04/2020,Specialist Technical Support,Corporate Services Director,HAYS SPECIALIST RECRUITMENT LTD,,Large,,5106259810,GDPR Trainer,NW1 2AF,"2,265.60",
"Housing, Communities & Local Government",PINS,23/04/2020,EXP � PURCHASE OF GOODS /SERVICES R & D,Research and Development,HAYS SPECIALIST RECRUITMENT LTD,,Large,,5106259758,ODT User Researcher ,NW1 2AF,"2,281.24",
"Housing, Communities & Local Government",PINS,21/04/2020,IT Maintenance,Digital Services,TOTAL COMPUTER NETWORKS LTD,,Large,,5106259672,Hitachi AMS2100 backup SAN 24/7 & 4 hr r,NN15 6ED,"2,300.00",
"Housing, Communities & Local Government",PINS,08/04/2020,NSI Fees & Expenses,NSI Fees Planning,MR D HAINSWORTH,,Data Not Provided,,5106259313,NSI Fees,S60 3EE,"2,310.00",
"Housing, Communities & Local Government",PINS,08/04/2020,NSI Fees & Expenses,NSI Fees Planning,MARTIN ANDREWS PLANNING CONSULTANCY,,Micro,,5106259314,NSI Fees,BH15 1HH,"2,340.00",
"Housing, Communities & Local Government",PINS,23/04/2020,NSI Fees & Expenses,NSI Fees Planning,MARTIN ANDREWS PLANNING CONSULTANCY,,Micro,,5106259818,NSI Fees,BH15 1HH,"2,340.00",
"Housing, Communities & Local Government",PINS,17/04/2020,EXP � PURCHASE OF GOODS /SERVICES R & D,Research and Development,HAYS SPECIALIST RECRUITMENT LTD,,Large,,5106259564,ODT Scrum Master,NW1 2AF,"2,363.88",
"Housing, Communities & Local Government",PINS,24/04/2020,EXP � PURCHASE OF GOODS /SERVICES R & D,Research and Development,HAYS SPECIALIST RECRUITMENT LTD,,Large,,5106259792,ODT Scrum Master,NW1 2AF,"2,363.88",
"Housing, Communities & Local Government",PINS,09/04/2020,IT at cost,Digital Services,INSIGHT DIRECT (UK) LTD,,Large,,5106259363,Philips Monitors,UB8 1PH,"2,398.20",
"Housing, Communities & Local Government",PINS,09/04/2020,Specialist Technical Support,Research and Development,SOLOS CONSULTANTS LTD,,Large,,5106259349,ODT BA ,NG16 1LA,"2,423.66",
"Housing, Communities & Local Government",PINS,17/04/2020,Specialist Technical Support,Research and Development,SOLOS CONSULTANTS LTD,,Large,,5106259556,ODT BA ,NG16 1LA,"2,423.66",
"Housing, Communities & Local Government",PINS,03/04/2020,Specialist Technical Support,"Finance, Commercial & Business Support",HAYS SPECIALIST RECRUITMENT LTD,,Large,,5106258891,Commercial Manager ,NW1 2AF,"2,443.32",
"Housing, Communities & Local Government",PINS,15/04/2020,Specialist Technical Support,Digital Services,HAYS SPECIALIST RECRUITMENT LTD,,Large,,5106259478,Office 365 SME,NW1 2AF,"2,497.49",
"Housing, Communities & Local Government",PINS,21/04/2020,Specialist Technical Support,Digital Services,HAYS SPECIALIST RECRUITMENT LTD,,Large,,5106259670,Office 365 SME,NW1 2AF,"2,497.49",
"Housing, Communities & Local Government",PINS,17/04/2020,Specialist Technical Support,Data and Performance,HAYS SPECIALIST RECRUITMENT LTD,,Large,,5106259562,Senior records manager,NW1 2AF,"2,505.60",
"Housing, Communities & Local Government",PINS,24/04/2020,Specialist Technical Support,Data and Performance,HAYS SPECIALIST RECRUITMENT LTD,,Large,,5106259793,Senior records manager,NW1 2AF,"2,505.60",
"Housing, Communities & Local Government",PINS,21/04/2020,NSI Fees & Expenses,NSI Fees Planning,MR D HAINSWORTH,,Data Not Provided,,5106259692,NSI Fees,S60 3EE,"2,520.00",
"Housing, Communities & Local Government",PINS,03/04/2020,EXP � PURCHASE OF GOODS /SERVICES R & D,Research and Development,HAYS SPECIALIST RECRUITMENT LTD,,Large,,5106258887,ODT BA ,NW1 2AF,"2,608.50",
"Housing, Communities & Local Government",PINS,09/04/2020,EXP � PURCHASE OF GOODS /SERVICES R & D,Research and Development,HAYS SPECIALIST RECRUITMENT LTD,,Large,,5106259336,ODT BA ,NW1 2AF,"2,608.50",
"Housing, Communities & Local Government",PINS,17/04/2020,Specialist Technical Support,Digital Services,SOLOS CONSULTANTS LTD,,Large,,5106259558,Lead developer - end of Aug 2020,NG16 1LA,"2,615.66",
"Housing, Communities & Local Government",PINS,24/04/2020,Specialist Technical Support,Digital Services,SOLOS CONSULTANTS LTD,,Large,,5106259801,Lead developer - end of Aug 2020,NG16 1LA,"2,615.66",
"Housing, Communities & Local Government",PINS,03/04/2020,Specialist Technical Support,Research and Development,HAYS SPECIALIST RECRUITMENT LTD,,Large,,5106258905,ODT ID  ,NW1 2AF,"2,737.49",
"Housing, Communities & Local Government",PINS,24/04/2020,Specialist Technical Support,Data and Performance,HAYS SPECIALIST RECRUITMENT LTD,,Large,,5106259783,Extension ,NW1 2AF,"2,737.49",
"Housing, Communities & Local Government",PINS,28/04/2020,Electricity,Estates,MINISTRY OF JUSTICE,,Data Not Provided,,5106259914,2018/19 TQH Electricity,NP10 8BA,"2,803.24",
"Housing, Communities & Local Government",PINS,08/04/2020,Specialist Technical Support,Performance Recovery,HAYS SPECIALIST RECRUITMENT LTD,,Large,,5106258986,BI Developer Ext ,NW1 2AF,"2,830.32",
"Housing, Communities & Local Government",PINS,09/04/2020,Specialist Technical Support,Performance Recovery,HAYS SPECIALIST RECRUITMENT LTD,,Large,,5106259343,BI Developer,NW1 2AF,"2,830.32",
"Housing, Communities & Local Government",PINS,03/04/2020,Specialist Technical Support,Corporate Services Director,HAYS SPECIALIST RECRUITMENT LTD,,Large,,5106258896,GDPR Trainer,NW1 2AF,"2,832.00",
"Housing, Communities & Local Government",PINS,09/04/2020,Specialist Technical Support,Corporate Services Director,HAYS SPECIALIST RECRUITMENT LTD,,Large,,5106259342,GDPR Trainer,NW1 2AF,"2,832.00",
"Housing, Communities & Local Government",PINS,02/04/2020,EXP � PURCHASE OF GOODS /SERVICES R & D,Research and Development,HAYS SPECIALIST RECRUITMENT LTD,,Large,,5106258856,ODT User Researcher,NW1 2AF,"2,851.55",
"Housing, Communities & Local Government",PINS,03/04/2020,EXP � PURCHASE OF GOODS /SERVICES R & D,Research and Development,HAYS SPECIALIST RECRUITMENT LTD,,Large,,5106258889,ODT BA ,NW1 2AF,"2,851.55",
"Housing, Communities & Local Government",PINS,08/04/2020,EXP � PURCHASE OF GOODS /SERVICES R & D,Research and Development,HAYS SPECIALIST RECRUITMENT LTD,,Large,,5106259306,ODT User Researcher ,NW1 2AF,"2,851.55",
"Housing, Communities & Local Government",PINS,29/04/2020,EXP � PURCHASE OF GOODS /SERVICES R & D,Research and Development,HAYS SPECIALIST RECRUITMENT LTD,,Large,,5106259924,ODT User Researcher,NW1 2AF,"2,851.55",
"Housing, Communities & Local Government",PINS,21/04/2020,Specialist Technical Support,Corporate Services Director,HAYS SPECIALIST RECRUITMENT LTD,,Large,,5106259682,Data Protection Liason Officer ,NW1 2AF,"2,864.40",
"Housing, Communities & Local Government",PINS,24/04/2020,Specialist Technical Support,Corporate Services Director,HAYS SPECIALIST RECRUITMENT LTD,,Large,,5106259804,Data Protection Liason Officer Extension,NW1 2AF,"2,864.40",
"Housing, Communities & Local Government",PINS,03/04/2020,EXP � PURCHASE OF GOODS /SERVICES R & D,Research and Development,HAYS SPECIALIST RECRUITMENT LTD,,Large,,5106258894,ODT Scrum Master,NW1 2AF,"2,954.85",
"Housing, Communities & Local Government",PINS,09/04/2020,EXP � PURCHASE OF GOODS /SERVICES R & D,Research and Development,HAYS SPECIALIST RECRUITMENT LTD,,Large,,5106259333,ODT Scrum Master,NW1 2AF,"2,954.85",
"Housing, Communities & Local Government",PINS,09/04/2020,Specialist Technical Support,Research and Development,HAYS SPECIALIST RECRUITMENT LTD,,Large,,5106259331,ODT ID,NW1 2AF,"3,079.68",
"Housing, Communities & Local Government",PINS,03/04/2020,Specialist Technical Support,Digital Services,HAYS SPECIALIST RECRUITMENT LTD,,Large,,5106258898,PHP Developer,NW1 2AF,"3,121.86",
"Housing, Communities & Local Government",PINS,07/04/2020,Specialist Technical Support,Digital Services,HAYS SPECIALIST RECRUITMENT LTD,,Large,,5106259216,Office 365 SME,NW1 2AF,"3,121.86",
"Housing, Communities & Local Government",PINS,09/04/2020,Specialist Technical Support,Digital Services,HAYS SPECIALIST RECRUITMENT LTD,,Large,,5106259335,PHP Developer,NW1 2AF,"3,121.86",
"Housing, Communities & Local Government",PINS,17/04/2020,Specialist Technical Support,Digital Services,HAYS SPECIALIST RECRUITMENT LTD,,Large,,5106259559,PHP Developer,NW1 2AF,"3,121.86",
"Housing, Communities & Local Government",PINS,24/04/2020,Specialist Technical Support,Digital Services,HAYS SPECIALIST RECRUITMENT LTD,,Large,,5106259787,PHP Developer,NW1 2AF,"3,121.86",
"Housing, Communities & Local Government",PINS,28/04/2020,Specialist Technical Support,Digital Services,HAYS SPECIALIST RECRUITMENT LTD,,Large,,5106259885,Office 365 SME,NW1 2AF,"3,121.86",
"Housing, Communities & Local Government",PINS,03/04/2020,Specialist Technical Support,Data and Performance,HAYS SPECIALIST RECRUITMENT LTD,,Large,,5106258888,Senior records manager,NW1 2AF,"3,132.00",
"Housing, Communities & Local Government",PINS,09/04/2020,Specialist Technical Support,Data and Performance,HAYS SPECIALIST RECRUITMENT LTD,,Large,,5106259334,Senior records manager,NW1 2AF,"3,132.00",
"Housing, Communities & Local Government",PINS,07/04/2020,Specialist Technical Support,Digital Services,SOLOS CONSULTANTS LTD,,Large,,5106258911,Lead developer,NG16 1LA,"3,269.58",
"Housing, Communities & Local Government",PINS,09/04/2020,Specialist Technical Support,Digital Services,SOLOS CONSULTANTS LTD,,Large,,5106259348,Lead developer - end of Aug 2020,NG16 1LA,"3,269.58",
"Housing, Communities & Local Government",PINS,06/04/2020,Specialist Technical Support,TR Transformation,HAYS SPECIALIST RECRUITMENT LTD,,Large,,5106259106,9 Day extension,NW1 2AF,"3,421.86",
"Housing, Communities & Local Government",PINS,14/04/2020,Specialist Technical Support,TR Customer,HAYS SPECIALIST RECRUITMENT LTD,,Large,,5106259383,BA Resource for CRM,NW1 2AF,"3,421.86",
"Housing, Communities & Local Government",PINS,23/04/2020,Specialist Technical Support,Data and Performance,HAYS SPECIALIST RECRUITMENT LTD,,Large,,5106259781,Extension,NW1 2AF,"3,421.86",
"Housing, Communities & Local Government",PINS,24/04/2020,Specialist Technical Support,Digital Services,HAYS SPECIALIST RECRUITMENT LTD,,Large,,5106259786,BA Digital Hearings ,NW1 2AF,"3,421.86",
"Housing, Communities & Local Government",PINS,07/04/2020,Specialist Technical Support,Corporate Services Director,HAYS SPECIALIST RECRUITMENT LTD,,Large,,5106258901,Data Protection Liason Officer,NW1 2AF,"3,580.50",
"Housing, Communities & Local Government",PINS,09/04/2020,Specialist Technical Support,Corporate Services Director,HAYS SPECIALIST RECRUITMENT LTD,,Large,,5106259345,Data Protection Liason Officer Extension,NW1 2AF,"3,580.50",
"Housing, Communities & Local Government",PINS,07/04/2020,Mobile phone costs,Digital Services,DAISY COMMUNICATIONS LIMITED,,Large,,5106259237,Mobile voice & data services,BB9 5SR,"4,071.85",
"Housing, Communities & Local Government",PINS,14/04/2020,Agency Staff,Research and Development,CAPITA RESOURCING LTD,,Large,,5106258827,Content Resource for March,SL6 1DP,"4,380.96",
"Housing, Communities & Local Government",PINS,17/04/2020,Specialist Technical Support,TR Customer,HAYS SPECIALIST RECRUITMENT LTD,,Large,,5106259566,BA Resource for CRM,NW1 2AF,"4,790.60",
"Housing, Communities & Local Government",PINS,09/04/2020,Specialist Technical Support,Digital Services,METHODS BUSINESS AND DIGITAL TECH,,Medium,,5106259351,Project support officer for Corporate Sy,EC1N 8TS,"4,856.28",
"Housing, Communities & Local Government",PINS,06/04/2020,Online Database Information Retrieval,Knowledge & Horizon Scanning,HAYMARKET MEDIA GROUP LIMITED,,Data Not Provided,,5106259061,DCP Online Subscription,TW1 3SP,"5,268.00",
"Housing, Communities & Local Government",PINS,23/04/2020,IT at cost,Digital Services,INSIGHT DIRECT (UK) LTD,,Large,,5106259779,Philips Monitors x30,UB8 1PH,"5,824.20",
"Housing, Communities & Local Government",PINS,06/04/2020,Specialist Technical Support,Performance Recovery,METHODS BUSINESS AND DIGITAL TECH,,Medium,,5106259157,PM for performance Recovery,EC1N 8TS,"6,288.01",
"Housing, Communities & Local Government",PINS,16/04/2020,IT - Service Contracts,Digital Services,X M A LIMITED,,Data Not Provided,,5106259543,Extension to Contract 1 year,NG11 7EP,"6,924.00",
"Housing, Communities & Local Government",PINS,07/04/2020,EXP � PURCHASE OF GOODS /SERVICES R & D,Research and Development,METHODS BUSINESS AND DIGITAL TECH,,Medium,,5106259042,ODT Test Analyst,EC1N 8TS,"7,623.00",
"Housing, Communities & Local Government",PINS,09/04/2020,Training,Transformation Prog Management Office,VANGUARD CONSULTING LTD,,Small,,5106259379,Customer Oriented Productivity Training,MK18 1BU,"7,680.00",
"Housing, Communities & Local Government",PINS,21/04/2020,EXP � PURCHASE OF GOODS /SERVICES R & D,Research and Development,CORPORATE DOCUMENT SERVICES LTD,,Data Not Provided,,5106259698,Portal Dev - expenses,LS2 7LY,"8,000.71",
"Housing, Communities & Local Government",PINS,08/04/2020,IT at cost,Digital Services,X M A LIMITED,,Data Not Provided,,5106259324,SFC laptop ,NG11 7EP,"9,120.00",
"Housing, Communities & Local Government",PINS,22/04/2020,EXP � PURCHASE OF GOODS /SERVICES R & D,Research and Development,PEOPLE FOR RESEARCH LTD,,Small,,5106259753,Accelerated User Research for ODT,BS1 4HJ,"9,452.00",
"Housing, Communities & Local Government",PINS,09/04/2020,Specialist Technical Support,Corporate Services Director,METHODS BUSINESS AND DIGITAL TECH,,Medium,,5106259307,Test Analyst,EC1N 8TS,"10,272.94",
"Housing, Communities & Local Government",PINS,08/04/2020,Specialist Technical Support,Digital Services,METHODS BUSINESS AND DIGITAL TECH,,Medium,,5106259130,Sharepoint & Teams Specialist,EC1N 8TS,"10,830.00",
"Housing, Communities & Local Government",PINS,09/04/2020,Training,Transformation Prog Management Office,VANGUARD CONSULTING LTD,,Small,,5106259380,Customer Oriented Productivity Training,MK18 1BU,"11,520.00",
"Housing, Communities & Local Government",PINS,02/04/2020,Internal Audit,"Finance, Commercial & Business Support",H M TREASURY,,Public Bodies,,5106258812,Internal Audit 19-20,NR7 0HS,"11,625.00",
"Housing, Communities & Local Government",PINS,06/04/2020,EXP � PURCHASE OF GOODS /SERVICES R & D,Research and Development,METHODS BUSINESS AND DIGITAL TECH,,Medium,,5106259132,ODT Project Manager PM2,EC1N 8TS,"12,183.60",
"Housing, Communities & Local Government",PINS,16/04/2020,Training,TR People,KORN FERRY (UK) LTD,,Large,,5106259517,Coaching services,SW1Y 6QB,"12,434.00",
"Housing, Communities & Local Government",PINS,09/04/2020,EXP � PURCHASE OF GOODS /SERVICES R & D,Research and Development,METHODS BUSINESS AND DIGITAL TECH,,Medium,,5106259354,ODT Project Manager,EC1N 8TS,"12,650.00",
"Housing, Communities & Local Government",PINS,17/04/2020,Specialist Technical Support,Performance Recovery,SANDERSON GOVERNMENT & DEFENCE,,Large,,5106259524,BI Developer for MiPINS,BS8 2QX,"12,714.00",
"Housing, Communities & Local Government",PINS,07/04/2020,EXP � PURCHASE OF GOODS /SERVICES R & D,Research and Development,@ITS(SEARCH&SELECTION)LTD,,Small,,5106259180,ODTBenefits Analyst,EC2V 6DL,"12,760.00",
"Housing, Communities & Local Government",PINS,28/04/2020,Facilities Management (ISD use only),Estates,MINISTRY OF JUSTICE,,Data Not Provided,,5106259914,2018/19 TQH FM,NP10 8BA,"13,903.60",
"Housing, Communities & Local Government",PINS,27/04/2020,Vehicle hire,Inspector Costs + NSI,ENTERPRISE RENT-A-CAR,,Large,,5106259855,Car Hire 19/20,TW20 9FB,"14,057.80",
"Housing, Communities & Local Government",PINS,08/04/2020,Specialist Technical Support,Performance Recovery,METHODS BUSINESS AND DIGITAL TECH,,Medium,,5106259127,Power BI Developer to 31.03.2020,EC1N 8TS,"14,476.44",
"Housing, Communities & Local Government",PINS,09/04/2020,Specialist Technical Support,Performance Recovery,METHODS BUSINESS AND DIGITAL TECH,,Medium,,5106259352,Inquiry Review PM ,EC1N 8TS,"14,782.38",
"Housing, Communities & Local Government",PINS,06/04/2020,EXP � PURCHASE OF GOODS /SERVICES R & D,Research and Development,METHODS BUSINESS AND DIGITAL TECH,,Medium,,5106259128,ODT Senior Project Manager,EC1N 8TS,"14,850.00",
"Housing, Communities & Local Government",PINS,08/04/2020,EXP � PURCHASE OF GOODS /SERVICES R & D,Research and Development,METHODS BUSINESS AND DIGITAL TECH,,Medium,,5106259129,DDM ext - 24-12-19 to 30-06-2020,EC1N 8TS,"14,850.00",
"Housing, Communities & Local Government",PINS,09/04/2020,Specialist Technical Support,Corporate Services Director,METHODS BUSINESS AND DIGITAL TECH,,Medium,,5106259361,Contract extension to 31st Mar 2020,EC1N 8TS,"15,074.40",
"Housing, Communities & Local Government",PINS,08/04/2020,Specialist Technical Support,Performance Recovery,METHODS BUSINESS AND DIGITAL TECH,,Medium,,5106259043,Product Analyst Resource ,EC1N 8TS,"15,136.44",
"Housing, Communities & Local Government",PINS,08/04/2020,Specialist Technical Support,Corporate Services Director,METHODS BUSINESS AND DIGITAL TECH,,Medium,,5106259131,DCS Business Analyst,EC1N 8TS,"15,180.00",
"Housing, Communities & Local Government",PINS,16/04/2020,Specialist Technical Support,Research and Development,METHODS BUSINESS AND DIGITAL TECH,,Medium,,5106259532,Test Manager and Automation ODT 3/2 -30/,EC1N 8TS,"15,180.00",
"Housing, Communities & Local Government",PINS,09/04/2020,Software Licences,Performance Recovery,SIMUL8 Corporation LTD,,Data Not Provided,,5106259134,Simulation software & associated trainin,G1 1HL,"15,594.00",
"Housing, Communities & Local Government",PINS,27/04/2020,Specialist Technical Support,"Finance, Commercial & Business Support",METHODS BUSINESS AND DIGITAL TECH,,Medium,,5106259852,WSL extension until 30/04/20,EC1N 8TS,"15,840.00",
"Housing, Communities & Local Government",PINS,17/04/2020,EXP � PURCHASE OF GOODS /SERVICES R & D,Research and Development,DELOITTE LLP,,Large,,5106259490,Variation 002,MK9 1FD,"16,200.00",
"Housing, Communities & Local Government",PINS,06/04/2020,Specialist Technical Support,Performance Recovery,METHODS BUSINESS AND DIGITAL TECH,,Medium,,5106259157,PM for performance Recovery,EC1N 8TS,"16,768.32",
"Housing, Communities & Local Government",PINS,08/04/2020,Specialist Technical Support,Performance Recovery,METHODS BUSINESS AND DIGITAL TECH,,Medium,,5106259044,Extension to 30.06.2020,EC1N 8TS,"17,776.44",
"Housing, Communities & Local Government",PINS,28/04/2020,Travel and Subsistence Account,Inspector Costs + NSI,CORPORATE TRAVEL MANAGEMENT(NORTH)L,,Small,,5106259897,Rail,BD1 5HQ,"19,462.95",
"Housing, Communities & Local Government",PINS,28/04/2020,IT - Software Maintenance,Digital Services,N T SECURITY LTD,,Not assigned,,5106259880,Interflex maintenance charge 1st April 2,ME2 4NZ,"20,048.87",
"Housing, Communities & Local Government",PINS,06/04/2020,Specialist Technical Support,Digital Services,MEDLEY BUSINESS SOLUTIONS LIMITED,,Medium,,5106259149,Digital Architect,GU4 8PR,"20,908.80",
"Housing, Communities & Local Government",PINS,14/04/2020,Specialist Technical Support,Research and Development,METHODS BUSINESS AND DIGITAL TECH,,Medium,,5106259441,Contract Extension 31.21.19 - 31.03.20,EC1N 8TS,"21,660.00",
"Housing, Communities & Local Government",PINS,21/04/2020,HR Consultancy,Human Resources,PA CONSULTING SERVICES LIMITED,,Large,,5106259690,OD&D Variation 12 - Diveristy & Inclusio,SW1W 9SR,"24,206.40",
"Housing, Communities & Local Government",PINS,09/04/2020,Specialist Technical Support,Research and Development,METHODS BUSINESS AND DIGITAL TECH,,Medium,,5106259353,ODT Programme Delivery Manager PRM2,EC1N 8TS,"24,730.20",
"Housing, Communities & Local Government",PINS,21/04/2020,EXP � PURCHASE OF GOODS /SERVICES R & D,Research and Development,CORPORATE DOCUMENT SERVICES LTD,,Data Not Provided,,5106259699,Portal Dev - onboarding,LS2 7LY,"26,420.00",
"Housing, Communities & Local Government",PINS,08/04/2020,Specialist Technical Support,Research and Development,AIIMI LTD,,Medium,,5106259319,Horizon Variation 08,MK9 1JL,"28,462.50",
"Housing, Communities & Local Government",PINS,16/04/2020,IT - Software Maintenance,Digital Services,AIIMI LTD,,Medium,,5106259541,Horizon technical development & support,MK9 1JL,"30,600.00",
"Housing, Communities & Local Government",PINS,09/04/2020,Subscriptions,Digital Services,INFORMATION SECURITY FORUM LTD,,Medium,,5106259357,ISF membership services (01/02/20 to 31/,EC3M 1AJ,"34,800.00",
"Housing, Communities & Local Government",PINS,21/04/2020,EXP � PURCHASE OF GOODS /SERVICES R & D,Research and Development,CORPORATE DOCUMENT SERVICES LTD,,Data Not Provided,,5106259699,Portal Dev - Sprints 0-8,LS2 7LY,"50,635.00",
"Housing, Communities & Local Government",PINS,02/04/2020,IT at cost,Digital Services,X M A LIMITED,,Data Not Provided,,5106258855,Surface laptops,NG11 7EP,"54,720.00",
"Housing, Communities & Local Government",PINS,27/04/2020,IT - Software Maintenance,Digital Services,CACI INFORMATION SOLUTIONS LTD,,Large,,5106259869,Support & mtce from 01/05/20 to 31/10/20,W14 8TS,"98,855.58",
"Housing, Communities & Local Government",PINS,28/04/2020,Travel and Subsistence Account,Inspector Costs + NSI,CORPORATE TRAVEL MANAGEMENT(NORTH)L,,Small,,5106259897,Hotel,BD1 5HQ,"127,281.68",
"Housing, Communities & Local Government",PINS,28/04/2020,Rates,Estates,MINISTRY OF JUSTICE,,Data Not Provided,,5106259914,2018/19 TQH Rates,NP10 8BA,"128,217.02",
"Housing, Communities & Local Government",PINS,21/04/2020,EXP � PURCHASE OF GOODS /SERVICES R & D,Research and Development,CORPORATE DOCUMENT SERVICES LTD,,Data Not Provided,,5106259697,Portal Dev - Sprints 0-8,LS2 7LY,"282,297.50",
"Housing, Communities & Local Government",PINS,28/04/2020,Rent,Estates,MINISTRY OF JUSTICE,,Data Not Provided,,5106259914,2018/19 TQH Rent,NP10 8BA,"324,835.54",
